[Event "*** SCC Grand Prix: Titled Tuesday Blitz"]
[Site "Chess.com"]
[Date "2020.06.09"]
[Round "4"]
[White "Danfii"]
[Black "Leonid_Starozhilov"]
[Result "0-1"]
[WhiteElo "2378"]
[BlackElo "2710"]
[TimeControl "180+1"]
[EndTime "9:40:31 PDT"]
[Termination "Leonid_Starozhilov won on time"]

1. e4 {[%clk 0:03:00.9]} 1... g6 {[%clk 0:02:56.9]} 2. d4 {[%clk 0:02:57]} 2...
Bg7 {[%clk 0:02:57]} 3. Nc3 {[%clk 0:02:57.5]} 3... d6 {[%clk 0:02:57.3]} 4. f4
{[%clk 0:02:57.4]} 4... Nf6 {[%clk 0:02:57.5]} 5. Nf3 {[%clk 0:02:57.7]} 5...
O-O {[%clk 0:02:57.5]} 6. e5 {[%clk 0:02:58]} 6... dxe5 {[%clk 0:02:57.8]} 7.
fxe5 {[%clk 0:02:58.9]} 7... Nd5 {[%clk 0:02:58.1]} 8. Bc4 {[%clk 0:02:58.8]}
8... Be6 {[%clk 0:02:58]} 9. Nxd5 {[%clk 0:02:58.6]} 9... Bxd5 {[%clk
0:02:58.8]} 10. Bxd5 {[%clk 0:02:59.5]} 10... Qxd5 {[%clk 0:02:59.2]} 11. Qe2
{[%clk 0:03:00.2]} 11... Nc6 {[%clk 0:02:53.4]} 12. c4 {[%clk 0:02:52.6]} 12...
Qa5+ {[%clk 0:02:51.5]} 13. Bd2 {[%clk 0:02:52.6]} 13... Qa6 {[%clk 0:02:45.6]}
14. O-O {[%clk 0:02:29.6]} 14... Rad8 {[%clk 0:02:37.1]} 15. d5 {[%clk
0:02:29.1]} 15... Rxd5 {[%clk 0:02:35.4]} 16. b4 {[%clk 0:02:22.3]} 16... Nxe5
{[%clk 0:02:18.4]} 17. b5 {[%clk 0:02:10.9]} 17... Rxd2 {[%clk 0:01:17.8]} 18.
Nxd2 {[%clk 0:02:02.6]} 18... Qb6+ {[%clk 0:01:13.7]} 19. Kh1 {[%clk 0:02:00.4]}
19... h5 {[%clk 0:01:07.1]} 20. Rad1 {[%clk 0:01:58.2]} 20... Ng4 {[%clk
0:01:03.9]} 21. Ne4 {[%clk 0:01:43.7]} 21... Qe6 {[%clk 0:00:51.9]} 22. h3
{[%clk 0:01:28.1]} 22... Nh6 {[%clk 0:00:36.4]} 23. Ng3 {[%clk 0:01:14.5]} 23...
Be5 {[%clk 0:00:32]} 24. Rf3 {[%clk 0:01:01.7]} 24... h4 {[%clk 0:00:17.2]} 25.
Ne4 {[%clk 0:00:48.6]} 25... Nf5 {[%clk 0:00:17.3]} 26. Qd3 {[%clk 0:00:33.2]}
26... Bd6 {[%clk 0:00:17]} 27. Nxd6 {[%clk 0:00:31.2]} 27... cxd6 {[%clk
0:00:04.3]} 28. Qd5 {[%clk 0:00:22.4]} 28... Qxd5 {[%clk 0:00:03.3]} 29. cxd5
{[%clk 0:00:20.4]} 29... Rc8 {[%clk 0:00:03]} 30. Rb3 {[%clk 0:00:17.7]} 30...
Rc5 {[%clk 0:00:03]} 31. a4 {[%clk 0:00:17]} 31... Kg7 {[%clk 0:00:02.9]} 32.
Kg1 {[%clk 0:00:17.1]} 32... Ng3 {[%clk 0:00:03.4]} 33. Kf2 {[%clk 0:00:15]}
33... Nf5 {[%clk 0:00:03.9]} 34. Kf3 {[%clk 0:00:13.6]} 34... Kf6 {[%clk
0:00:04.3]} 35. a5 {[%clk 0:00:12.9]} 35... Rc4 {[%clk 0:00:04.4]} 36. a6 {[%clk
0:00:11]} 36... b6 {[%clk 0:00:04.8]} 37. Rdd3 {[%clk 0:00:11]} 37... Nd4+
{[%clk 0:00:05]} 38. Rxd4 {[%clk 0:00:10.3]} 38... Rxd4 {[%clk 0:00:05.9]} 39.
Rc3 {[%clk 0:00:10.9]} 39... Rxd5 {[%clk 0:00:06.4]} 40. Rc7 {[%clk 0:00:11.8]}
40... Rxb5 {[%clk 0:00:06.9]} 41. Rxa7 {[%clk 0:00:12.7]} 41... Ra5 {[%clk
0:00:07.2]} 42. Ra8 {[%clk 0:00:12.2]} 42... Ra4 {[%clk 0:00:07.3]} 43. a7
{[%clk 0:00:12.1]} 43... b5 {[%clk 0:00:07.7]} 44. Ke3 {[%clk 0:00:11.2]} 44...
e6 {[%clk 0:00:08]} 45. Kd3 {[%clk 0:00:11.4]} 45... d5 {[%clk 0:00:08.5]} 46.
Kc3 {[%clk 0:00:11.4]} 46... e5 {[%clk 0:00:09.1]} 47. Kb3 {[%clk 0:00:10.9]}
47... e4 {[%clk 0:00:09.6]} 48. Kc3 {[%clk 0:00:10]} 48... Kg7 {[%clk
0:00:09.3]} 49. Kd2 {[%clk 0:00:09.7]} 49... d4 {[%clk 0:00:09.6]} 50. Ke2
{[%clk 0:00:10]} 50... Ra2+ {[%clk 0:00:10]} 51. Kd1 {[%clk 0:00:09.6]} 51... e3
{[%clk 0:00:10.4]} 52. Rd8 {[%clk 0:00:09.3]} 52... Rxa7 {[%clk 0:00:10.1]} 53.
Rxd4 {[%clk 0:00:09.6]} 53... Ra2 {[%clk 0:00:10.4]} 54. Rxh4 {[%clk 0:00:08.4]}
54... Rxg2 {[%clk 0:00:10.6]} 55. Rb4 {[%clk 0:00:08.2]} 55... Rg3 {[%clk
0:00:10.4]} 0-1

[Event "*** SCC Grand Prix: Titled Tuesday Blitz"]
[Site "Chess.com"]
[Date "2020.06.09"]
[Round "4"]
[White "WiktoriaPOL"]
[Black "Playgood28"]
[Result "1-0"]
[WhiteElo "2039"]
[BlackElo "2257"]
[TimeControl "180+1"]
[EndTime "9:40:32 PDT"]
[Termination "WiktoriaPOL won on time"]

1. c4 {[%clk 0:03:00.9]} 1... f5 {[%clk 0:02:58.8]} 2. Nc3 {[%clk 0:03:00.1]}
2... Nf6 {[%clk 0:02:57.9]} 3. g3 {[%clk 0:02:59.2]} 3... d6 {[%clk 0:02:56.9]}
4. Bg2 {[%clk 0:02:58.8]} 4... e5 {[%clk 0:02:56.8]} 5. d4 {[%clk 0:02:53.7]}
5... e4 {[%clk 0:02:55.2]} 6. h4 {[%clk 0:02:51.3]} 6... Be7 {[%clk 0:02:53.4]}
7. Nh3 {[%clk 0:02:50.8]} 7... O-O {[%clk 0:02:52.9]} 8. O-O {[%clk 0:02:50]}
8... c6 {[%clk 0:02:52.7]} 9. b4 {[%clk 0:02:42]} 9... a5 {[%clk 0:02:51.9]} 10.
b5 {[%clk 0:02:37.1]} 10... Be6 {[%clk 0:02:44.4]} 11. Qb3 {[%clk 0:02:23.1]}
11... Nbd7 {[%clk 0:02:36.5]} 12. Ng5 {[%clk 0:02:15.8]} 12... Bf7 {[%clk
0:02:31.1]} 13. Nxf7 {[%clk 0:02:14.9]} 13... Rxf7 {[%clk 0:02:30.4]} 14. a4
{[%clk 0:01:55.4]} 14... Rf8 {[%clk 0:02:27]} 15. Ba3 {[%clk 0:01:51.2]} 15...
Kh8 {[%clk 0:02:23.4]} 16. e3 {[%clk 0:01:45.6]} 16... Qc7 {[%clk 0:02:16.1]}
17. Ne2 {[%clk 0:01:41.3]} 17... Rfc8 {[%clk 0:01:53.7]} 18. Rfc1 {[%clk
0:01:32.1]} 18... Nf8 {[%clk 0:01:43.1]} 19. Nf4 {[%clk 0:01:29.2]} 19... Qd7
{[%clk 0:01:40.3]} 20. Rab1 {[%clk 0:01:15.9]} 20... Ne6 {[%clk 0:00:58.9]} 21.
bxc6 {[%clk 0:01:12.1]} 21... bxc6 {[%clk 0:00:57.2]} 22. Qb7 {[%clk 0:01:08.4]}
22... Nxf4 {[%clk 0:00:52.4]} 23. gxf4 {[%clk 0:00:55.7]} 23... Bd8 {[%clk
0:00:40.1]} 24. Qxd7 {[%clk 0:00:52.2]} 24... Nxd7 {[%clk 0:00:39.6]} 25. Bxd6
{[%clk 0:00:49.1]} 25... Nb6 {[%clk 0:00:38.1]} 26. Ra1 {[%clk 0:00:37.5]} 26...
Bxh4 {[%clk 0:00:36]} 27. Bc5 {[%clk 0:00:29.3]} 27... Nd7 {[%clk 0:00:33.9]}
28. Bd6 {[%clk 0:00:23.5]} 28... c5 {[%clk 0:00:33.7]} 29. d5 {[%clk 0:00:20.3]}
29... Bf6 {[%clk 0:00:31.1]} 30. Rab1 {[%clk 0:00:18.6]} 30... h6 {[%clk
0:00:28.6]} 31. Bh3 {[%clk 0:00:17.5]} 31... g6 {[%clk 0:00:26.8]} 32. Rb7
{[%clk 0:00:16.9]} 32... Nf8 {[%clk 0:00:26.1]} 33. Rb6 {[%clk 0:00:14.1]} 33...
Bg7 {[%clk 0:00:23.6]} 34. Rcb1 {[%clk 0:00:13.5]} 34... Nd7 {[%clk 0:00:20]}
35. Rb7 {[%clk 0:00:12.1]} 35... Nf6 {[%clk 0:00:19.8]} 36. Be5 {[%clk
0:00:11.6]} 36... Nh5 {[%clk 0:00:17.6]} 37. Bxg7+ {[%clk 0:00:10.7]} 37... Nxg7
{[%clk 0:00:17.3]} 38. R1b6 {[%clk 0:00:10]} 38... Kh7 {[%clk 0:00:15.8]} 39.
Rf6 {[%clk 0:00:08.7]} 39... Rab8 {[%clk 0:00:13.4]} 40. Rff7 {[%clk 0:00:05]}
40... Rxb7 {[%clk 0:00:12.7]} 41. Rxb7 {[%clk 0:00:05.9]} 41... Kg8 {[%clk
0:00:12.2]} 42. Rb5 {[%clk 0:00:05.7]} 42... Ne8 {[%clk 0:00:11.3]} 43. Rxa5
{[%clk 0:00:05.5]} 43... Nd6 {[%clk 0:00:11.3]} 44. Ra6 {[%clk 0:00:04.7]} 44...
Rd8 {[%clk 0:00:10.3]} 45. Rc6 {[%clk 0:00:04.4]} 45... Kf7 {[%clk 0:00:09.8]}
46. Rxc5 {[%clk 0:00:04.5]} 46... Ra8 {[%clk 0:00:08.1]} 47. a5 {[%clk
0:00:03.7]} 47... Ke7 {[%clk 0:00:04.6]} 48. Kf1 {[%clk 0:00:03.2]} 48... Kd7
{[%clk 0:00:04.2]} 49. Ke2 {[%clk 0:00:02.9]} 49... Nb7 {[%clk 0:00:04.1]} 50.
Rb5 {[%clk 0:00:03.1]} 50... Nxa5 {[%clk 0:00:03.8]} 51. c5 {[%clk 0:00:02.3]}
51... Nc4 {[%clk 0:00:03.4]} 52. c6+ {[%clk 0:00:02.5]} 52... Kd6 {[%clk
0:00:03]} 53. Kd1 {[%clk 0:00:02.4]} 53... Ra2 {[%clk 0:00:02.4]} 54. Rb7 {[%clk
0:00:02.1]} 54... Kxd5 {[%clk 0:00:01.2]} 55. c7 {[%clk 0:00:01.5]} 1-0

[Event "*** SCC Grand Prix: Titled Tuesday Blitz"]
[Site "Chess.com"]
[Date "2020.06.09"]
[Round "4"]
[White "kuba2006"]
[Black "monstertube"]
[Result "0-1"]
[WhiteElo "2323"]
[BlackElo "2183"]
[TimeControl "180+1"]
[EndTime "9:40:38 PDT"]
[Termination "monstertube won on time"]

1. e4 {[%clk 0:03:00.9]} 1... e5 {[%clk 0:02:59.2]} 2. Nf3 {[%clk 0:03:00.9]}
2... Nf6 {[%clk 0:02:59.1]} 3. Nc3 {[%clk 0:03:00.1]} 3... Nc6 {[%clk
0:02:58.3]} 4. d4 {[%clk 0:02:57.5]} 4... exd4 {[%clk 0:02:56.5]} 5. Nxd4 {[%clk
0:02:58.4]} 5... Bb4 {[%clk 0:02:56.4]} 6. Nxc6 {[%clk 0:02:58.4]} 6... bxc6
{[%clk 0:02:57.2]} 7. Bd3 {[%clk 0:02:58.8]} 7... d5 {[%clk 0:02:57.4]} 8. exd5
{[%clk 0:02:59.1]} 8... cxd5 {[%clk 0:02:58.3]} 9. O-O {[%clk 0:02:59.3]} 9...
O-O {[%clk 0:02:58.9]} 10. Bg5 {[%clk 0:02:59.8]} 10... c6 {[%clk 0:02:59.2]}
11. Qf3 {[%clk 0:03:00.3]} 11... Bd6 {[%clk 0:02:47.1]} 12. h3 {[%clk
0:02:50.8]} 12... Rb8 {[%clk 0:02:46.8]} 13. Rab1 {[%clk 0:02:33.8]} 13... h6
{[%clk 0:02:45.1]} 14. Bxf6 {[%clk 0:02:24.5]} 14... Qxf6 {[%clk 0:02:46]} 15.
Qxf6 {[%clk 0:02:25]} 15... gxf6 {[%clk 0:02:46.4]} 16. Ne2 {[%clk 0:02:25.6]}
16... c5 {[%clk 0:02:43.1]} 17. b3 {[%clk 0:02:25.2]} 17... Be6 {[%clk
0:02:40.5]} 18. f4 {[%clk 0:02:16.8]} 18... c4 {[%clk 0:02:39.2]} 19. bxc4
{[%clk 0:02:12.8]} 19... dxc4 {[%clk 0:02:38.3]} 20. Be4 {[%clk 0:02:12]} 20...
Rxb1 {[%clk 0:02:27.9]} 21. Rxb1 {[%clk 0:02:11]} 21... Rb8 {[%clk 0:02:27.8]}
22. Rxb8+ {[%clk 0:01:53.5]} 22... Bxb8 {[%clk 0:02:28.7]} 23. f5 {[%clk
0:01:45.1]} 23... Bd7 {[%clk 0:02:21.1]} 24. g4 {[%clk 0:01:44.1]} 24... Be5
{[%clk 0:02:18.9]} 25. Kf2 {[%clk 0:01:29.1]} 25... Kg7 {[%clk 0:02:06.9]} 26.
Ke3 {[%clk 0:01:20]} 26... Kf8 {[%clk 0:02:06.1]} 27. Bd5 {[%clk 0:01:16.9]}
27... Kg7 {[%clk 0:01:52.3]} 28. Bxc4 {[%clk 0:01:12.8]} 28... h5 {[%clk
0:01:47.3]} 29. Bd5 {[%clk 0:01:08.6]} 29... hxg4 {[%clk 0:01:47]} 30. hxg4
{[%clk 0:01:09.5]} 30... Kf8 {[%clk 0:01:47]} 31. c4 {[%clk 0:01:07.5]} 31...
Ke7 {[%clk 0:01:45.2]} 32. Nd4 {[%clk 0:01:04.9]} 32... Be8 {[%clk 0:01:37.2]}
33. c5 {[%clk 0:00:59.9]} 33... Kd8 {[%clk 0:01:30.7]} 34. Ke4 {[%clk
0:00:52.1]} 34... Kc7 {[%clk 0:01:29.5]} 35. Nf3 {[%clk 0:00:47.6]} 35... Bb2
{[%clk 0:01:28.9]} 36. Nd2 {[%clk 0:00:36.9]} 36... Be5 {[%clk 0:01:27.1]} 37.
Nc4 {[%clk 0:00:36.3]} 37... Bc3 {[%clk 0:01:26.6]} 38. Nd6 {[%clk 0:00:34.5]}
38... Bc6 {[%clk 0:01:20.9]} 39. Nxf7 {[%clk 0:00:33.7]} 39... Bb4 {[%clk
0:01:20.6]} 40. Kd4 {[%clk 0:00:33.7]} 40... Bd2 {[%clk 0:01:18]} 41. Nd6 {[%clk
0:00:28.3]} 41... Ba4 {[%clk 0:01:10.6]} 42. Ne4 {[%clk 0:00:25.9]} 42... Bc1
{[%clk 0:01:07.4]} 43. Bb3 {[%clk 0:00:25.3]} 43... Bb2+ {[%clk 0:01:06]} 44.
Kd5 {[%clk 0:00:24.4]} 44... Bc6+ {[%clk 0:01:06.2]} 45. Ke6 {[%clk 0:00:21.3]}
45... Bxe4 {[%clk 0:01:07.1]} 46. Bd1 {[%clk 0:00:18.7]} 46... Kc6 {[%clk
0:01:04]} 47. g5 {[%clk 0:00:18.4]} 47... fxg5 {[%clk 0:01:03.1]} 48. f6 {[%clk
0:00:18.5]} 48... Bd5+ {[%clk 0:00:58.4]} 49. Ke7 {[%clk 0:00:17.2]} 49... Bxa2
{[%clk 0:00:57.2]} 50. f7 {[%clk 0:00:10.9]} 50... Bg7 {[%clk 0:00:56]} 51. f8=Q
{[%clk 0:00:06.7]} 51... Bxf8+ {[%clk 0:00:55.3]} 52. Kxf8 {[%clk 0:00:07.6]}
52... Kxc5 {[%clk 0:00:54.9]} 53. Kg7 {[%clk 0:00:07.5]} 53... Be6 {[%clk
0:00:52.8]} 54. Kf6 {[%clk 0:00:07.6]} 54... g4 {[%clk 0:00:34.8]} 55. Kxe6
{[%clk 0:00:03.5]} 55... g3 {[%clk 0:00:34.6]} 56. Bf3 {[%clk 0:00:03.5]} 56...
a5 {[%clk 0:00:34.5]} 57. Kf5 {[%clk 0:00:03.6]} 57... a4 {[%clk 0:00:34.8]} 58.
Kf4 {[%clk 0:00:03.5]} 58... a3 {[%clk 0:00:35.1]} 59. Kxg3 {[%clk 0:00:04]}
59... a2 {[%clk 0:00:35.1]} 60. Bg2 {[%clk 0:00:03.5]} 60... a1=Q {[%clk
0:00:34.9]} 61. Kf2 {[%clk 0:00:03.6]} 61... Kd4 {[%clk 0:00:34.8]} 62. Kg3
{[%clk 0:00:03.7]} 62... Qc3+ {[%clk 0:00:35.7]} 63. Kf4 {[%clk 0:00:03.4]}
63... Qe3+ {[%clk 0:00:36.6]} 64. Kg4 {[%clk 0:00:03.4]} 64... Ke5 {[%clk
0:00:36.4]} 65. Kh4 {[%clk 0:00:01.9]} 65... Qg1 {[%clk 0:00:33.9]} 66. Kh3
{[%clk 0:00:02.8]} 66... Kf4 {[%clk 0:00:33.6]} 0-1

[Event "*** SCC Grand Prix: Titled Tuesday Blitz"]
[Site "Chess.com"]
[Date "2020.06.09"]
[Round "4"]
[White "Chuchofrio1"]
[Black "margarita_2703"]
[Result "0-1"]
[WhiteElo "2206"]
[BlackElo "2475"]
[TimeControl "180+1"]
[EndTime "9:40:39 PDT"]
[Termination "margarita_2703 won by resignation"]

1. d4 {[%clk 0:03:00.9]} 1... Nf6 {[%clk 0:02:59.4]} 2. c4 {[%clk 0:03:00.7]}
2... e6 {[%clk 0:02:58.3]} 3. Nc3 {[%clk 0:03:00.6]} 3... d5 {[%clk 0:02:56]} 4.
cxd5 {[%clk 0:02:59.8]} 4... exd5 {[%clk 0:02:50.2]} 5. Bg5 {[%clk 0:02:59.4]}
5... c6 {[%clk 0:02:48.5]} 6. Qc2 {[%clk 0:02:57]} 6... Be7 {[%clk 0:02:48.6]}
7. e3 {[%clk 0:02:56.7]} 7... Nbd7 {[%clk 0:02:48.4]} 8. Bd3 {[%clk 0:02:56.2]}
8... O-O {[%clk 0:02:43.7]} 9. Nf3 {[%clk 0:02:55.1]} 9... h6 {[%clk 0:02:43.5]}
10. Bf4 {[%clk 0:02:54.2]} 10... Re8 {[%clk 0:02:42.8]} 11. h3 {[%clk
0:02:53.6]} 11... b6 {[%clk 0:02:36.5]} 12. O-O {[%clk 0:02:51.7]} 12... Bb7
{[%clk 0:02:36.4]} 13. Rad1 {[%clk 0:02:43.4]} 13... Rc8 {[%clk 0:02:36]} 14. e4
{[%clk 0:02:07.2]} 14... dxe4 {[%clk 0:02:34.7]} 15. Nxe4 {[%clk 0:02:05]} 15...
c5 {[%clk 0:02:31.8]} 16. Qb1 {[%clk 0:02:00.7]} 16... c4 {[%clk 0:02:26.4]} 17.
Bc2 {[%clk 0:01:53.2]} 17... b5 {[%clk 0:02:16.5]} 18. Rfe1 {[%clk 0:01:52.4]}
18... Qb6 {[%clk 0:02:14]} 19. a3 {[%clk 0:01:28.2]} 19... a5 {[%clk 0:02:13.1]}
20. Ne5 {[%clk 0:01:05.9]} 20... b4 {[%clk 0:01:55.7]} 21. Nxd7 {[%clk 0:00:46]}
21... Nxd7 {[%clk 0:01:55]} 22. d5 {[%clk 0:00:40.6]} 22... b3 {[%clk
0:01:48.8]} 23. d6 {[%clk 0:00:23.6]} 23... bxc2 {[%clk 0:01:47.1]} 24. Qxc2
{[%clk 0:00:23.9]} 24... Bf8 {[%clk 0:01:44.8]} 25. Nc3 {[%clk 0:00:22.5]} 25...
Rxe1+ {[%clk 0:01:39.8]} 26. Rxe1 {[%clk 0:00:23.4]} 26... Qc6 {[%clk
0:01:34.9]} 27. f3 {[%clk 0:00:23.8]} 27... Bxd6 {[%clk 0:01:30.6]} 28. Qf5
{[%clk 0:00:18.6]} 28... Qc5+ {[%clk 0:01:27]} 29. Qxc5 {[%clk 0:00:17.3]} 29...
Bxc5+ {[%clk 0:01:26.7]} 30. Kh1 {[%clk 0:00:17.2]} 30... Nf6 {[%clk 0:01:24.4]}
31. Rd1 {[%clk 0:00:17.3]} 31... Kh7 {[%clk 0:01:10.3]} 32. Na4 {[%clk
0:00:17.1]} 32... Be7 {[%clk 0:00:57.9]} 33. Nb6 {[%clk 0:00:15.3]} 33... Rc6
{[%clk 0:00:55.3]} 34. Na4 {[%clk 0:00:15]} 34... Re6 {[%clk 0:00:49.4]} 35. Nc3
{[%clk 0:00:15]} 35... Rb6 {[%clk 0:00:39]} 36. Bc1 {[%clk 0:00:14.2]} 36... Rb3
{[%clk 0:00:37]} 37. Re1 {[%clk 0:00:13.9]} 37... Bxa3 {[%clk 0:00:34.3]} 38.
Re2 {[%clk 0:00:11.1]} 38... Bb4 {[%clk 0:00:33.5]} 39. Nb5 {[%clk 0:00:09.1]}
39... Rxf3 {[%clk 0:00:31]} 40. gxf3 {[%clk 0:00:08.3]} 40... Bxf3+ {[%clk
0:00:30.9]} 41. Kg1 {[%clk 0:00:09.2]} 41... Bxe2 {[%clk 0:00:31.1]} 42. Kf2
{[%clk 0:00:10.1]} 42... Bd3 {[%clk 0:00:30.5]} 43. Nc3 {[%clk 0:00:10.2]} 43...
Bxc3 {[%clk 0:00:29.7]} 44. bxc3 {[%clk 0:00:11.1]} 44... Ne4+ {[%clk
0:00:29.1]} 45. Ke3 {[%clk 0:00:10.9]} 45... Nxc3 {[%clk 0:00:28.2]} 46. Bb2
{[%clk 0:00:11.8]} 46... Nd5+ {[%clk 0:00:27.8]} 47. Kd4 {[%clk 0:00:11.7]}
47... Nf6 {[%clk 0:00:26.9]} 48. Ba3 {[%clk 0:00:11.4]} 48... Bf5 {[%clk
0:00:26.6]} 49. h4 {[%clk 0:00:10.6]} 49... Be6 {[%clk 0:00:24.7]} 50. Be7
{[%clk 0:00:10.4]} 50... Kg6 {[%clk 0:00:24.3]} 51. Kc3 {[%clk 0:00:11.3]} 51...
Kh5 {[%clk 0:00:24.3]} 52. Bd6 {[%clk 0:00:11.1]} 52... Kxh4 {[%clk 0:00:24.1]}
53. Be5 {[%clk 0:00:11]} 53... Ne4+ {[%clk 0:00:22.7]} 54. Kb2 {[%clk
0:00:11.9]} 54... g5 {[%clk 0:00:22.1]} 55. Bg7 {[%clk 0:00:11.3]} 55... h5
{[%clk 0:00:21.6]} 56. Bd4 {[%clk 0:00:12.2]} 56... g4 {[%clk 0:00:21.5]} 57.
Be3 {[%clk 0:00:13.1]} 57... g3 {[%clk 0:00:21]} 58. Bf4 {[%clk 0:00:13.4]}
58... g2 {[%clk 0:00:20.8]} 59. Be3 {[%clk 0:00:13.5]} 59... Kg3 {[%clk
0:00:21]} 60. Kc2 {[%clk 0:00:13.8]} 60... Nf2 {[%clk 0:00:21]} 61. Bc5 {[%clk
0:00:14.3]} 61... g1=Q {[%clk 0:00:19.4]} 62. Bd6+ {[%clk 0:00:15.2]} 62... Kh3
{[%clk 0:00:18.9]} 63. Bh2 {[%clk 0:00:15.6]} 63... Qxh2 {[%clk 0:00:17.6]} 64.
Kc1 {[%clk 0:00:15.8]} 64... Ne4 {[%clk 0:00:18.1]} 65. Kb1 {[%clk 0:00:15.6]}
65... Nc3+ {[%clk 0:00:16.4]} 66. Kc1 {[%clk 0:00:15.9]} 66... Qg1+ {[%clk
0:00:15.7]} 67. Kd2 {[%clk 0:00:16.1]} 67... Qd1+ {[%clk 0:00:15.3]} 68. Ke3
{[%clk 0:00:16.1]} 68... Qd3+ {[%clk 0:00:14.8]} 0-1

[Event "*** SCC Grand Prix: Titled Tuesday Blitz"]
[Site "Chess.com"]
[Date "2020.06.09"]
[Round "4"]
[White "TERMINATOR_PC"]
[Black "ChessQueen"]
[Result "1-0"]
[WhiteElo "2491"]
[BlackElo "2669"]
[TimeControl "180+1"]
[EndTime "9:40:40 PDT"]
[Termination "TERMINATOR_PC won by resignation"]

1. e4 {[%clk 0:03:00.9]} 1... c6 {[%clk 0:02:59.9]} 2. d4 {[%clk 0:02:59.3]}
2... d5 {[%clk 0:03:00.1]} 3. Nc3 {[%clk 0:03:00.2]} 3... dxe4 {[%clk
0:03:00.1]} 4. Nxe4 {[%clk 0:03:01.1]} 4... Nf6 {[%clk 0:03:00.7]} 5. Nxf6+
{[%clk 0:03:01.7]} 5... exf6 {[%clk 0:03:01.6]} 6. Bc4 {[%clk 0:03:02.1]} 6...
Nd7 {[%clk 0:02:51.2]} 7. Nf3 {[%clk 0:02:56.6]} 7... Bd6 {[%clk 0:02:41.1]} 8.
Qe2+ {[%clk 0:02:56]} 8... Qe7 {[%clk 0:02:41.2]} 9. Qxe7+ {[%clk 0:02:56.2]}
9... Kxe7 {[%clk 0:02:41.8]} 10. O-O {[%clk 0:02:56]} 10... Rd8 {[%clk
0:02:36.9]} 11. Re1+ {[%clk 0:02:51.8]} 11... Kf8 {[%clk 0:02:37.4]} 12. c3
{[%clk 0:02:40.3]} 12... Nb6 {[%clk 0:02:36.9]} 13. Bb3 {[%clk 0:02:37.5]} 13...
Bg4 {[%clk 0:02:36]} 14. h3 {[%clk 0:02:05.6]} 14... Bxf3 {[%clk 0:02:34.3]} 15.
gxf3 {[%clk 0:02:06.5]} 15... a5 {[%clk 0:02:24.7]} 16. a4 {[%clk 0:02:03.8]}
16... Re8 {[%clk 0:02:15.6]} 17. Bd2 {[%clk 0:02:02.3]} 17... Nd5 {[%clk
0:02:02.1]} 18. Kf1 {[%clk 0:01:19.5]} 18... Bf4 {[%clk 0:01:48.8]} 19. Bxd5
{[%clk 0:01:13]} 19... Bxd2 {[%clk 0:01:48.4]} 20. Rxe8+ {[%clk 0:01:13]} 20...
Rxe8 {[%clk 0:01:48]} 21. Bc4 {[%clk 0:01:10.9]} 21... h5 {[%clk 0:01:37.5]} 22.
Rd1 {[%clk 0:01:10.4]} 22... Bf4 {[%clk 0:01:34.8]} 23. d5 {[%clk 0:01:05]}
23... Rd8 {[%clk 0:01:12.5]} 24. Ke2 {[%clk 0:00:54.5]} 24... c5 {[%clk
0:01:12.7]} 25. Bb5 {[%clk 0:00:37.1]} 25... g5 {[%clk 0:00:59.5]} 26. Bc4
{[%clk 0:00:15]} 26... f5 {[%clk 0:00:58.4]} 27. Bb5 {[%clk 0:00:13.3]} 27...
Ke7 {[%clk 0:00:55]} 28. Bc4 {[%clk 0:00:07.3]} 28... Kf6 {[%clk 0:00:55.2]} 29.
Kf1 {[%clk 0:00:06.6]} 29... Be5 {[%clk 0:00:47.9]} 30. Re1 {[%clk 0:00:05.4]}
30... b6 {[%clk 0:00:47.8]} 31. Kg2 {[%clk 0:00:05.1]} 31... Rg8 {[%clk
0:00:44.3]} 32. Bb5 {[%clk 0:00:05]} 32... g4 {[%clk 0:00:42.8]} 33. hxg4 {[%clk
0:00:04.1]} 33... fxg4 {[%clk 0:00:40.2]} 34. fxg4 {[%clk 0:00:04.4]} 34...
Rxg4+ {[%clk 0:00:39.3]} 35. Kh3 {[%clk 0:00:02.5]} 35... Rf4 {[%clk 0:00:38.8]}
36. Re2 {[%clk 0:00:02.4]} 36... Bd6 {[%clk 0:00:33.3]} 37. Kg2 {[%clk
0:00:02.7]} 37... h4 {[%clk 0:00:30.6]} 38. b3 {[%clk 0:00:03]} 38... Be5 {[%clk
0:00:25.5]} 39. Bc4 {[%clk 0:00:02.4]} 39... Bxc3 {[%clk 0:00:11.5]} 40. d6
{[%clk 0:00:02.3]} 40... Rd4 {[%clk 0:00:11.8]} 41. Re3 {[%clk 0:00:01.9]} 41...
Bd2 {[%clk 0:00:08.2]} 42. Rf3+ {[%clk 0:00:02.3]} 42... Ke5 {[%clk 0:00:07.4]}
43. Rxf7 {[%clk 0:00:03.2]} 43... Rxd6 {[%clk 0:00:07.5]} 44. Rh7 {[%clk
0:00:03.7]} 44... Bg5 {[%clk 0:00:06.9]} 45. Rh5 {[%clk 0:00:03.2]} 45... Kf4
{[%clk 0:00:07.1]} 46. Rh7 {[%clk 0:00:03.7]} 46... Rd2 {[%clk 0:00:06]} 47.
Rf7+ {[%clk 0:00:03.9]} 47... Ke5 {[%clk 0:00:06.1]} 48. Rg7 {[%clk 0:00:03]}
48... Be3 {[%clk 0:00:06.1]} 49. Re7+ {[%clk 0:00:02.6]} 49... Kd4 {[%clk
0:00:04.4]} 50. Rxe3 {[%clk 0:00:03.5]} 50... Rb2 {[%clk 0:00:02.7]} 51. Rh3
{[%clk 0:00:03.6]} 51... b5 {[%clk 0:00:02.8]} 52. Rxh4+ {[%clk 0:00:03.7]}
52... Kc3 {[%clk 0:00:02.6]} 53. axb5 {[%clk 0:00:04.3]} 53... Rb1 {[%clk
0:00:02]} 54. b6 {[%clk 0:00:04.4]} 54... Rd1 {[%clk 0:00:02.4]} 55. b7 {[%clk
0:00:04.8]} 55... Rd8 {[%clk 0:00:03]} 56. Rh7 {[%clk 0:00:05]} 56... Rb8 {[%clk
0:00:03.2]} 57. Rc7 {[%clk 0:00:04.9]} 57... a4 {[%clk 0:00:03.3]} 58. Rxc5
{[%clk 0:00:04.8]} 58... a3 {[%clk 0:00:03.6]} 59. Ra5 {[%clk 0:00:04.8]} 59...
Kb4 {[%clk 0:00:03.8]} 60. Ra4+ {[%clk 0:00:04.9]} 60... Kc3 {[%clk 0:00:03]}
61. Rxa3 {[%clk 0:00:05.8]} 1-0